[Event "Niedersachsen Jubilaeumsturnier Open A 2"]
[Site "Wolfsburg"]
[Date "2024.11.15"]
[Round "1.1"]
[White "Paashaus, Detlef"]
[Black "Poetsch, Hagen"]
[Result "0-1"]
[ECO "B28"]
[WhiteElo "1934"]
[BlackElo "2502"]
[Annotator "TA"]
[PlyCount "44"]
[EventDate "2024.11.15"]
[EventCountry "GER"]
[SourceTitle "playchess.com"]
[Source "ChessBase"]
[SourceQuality "1"]
[TimeControl "5400+30"]

{[%evp 10,44,30,21,21,21,15,13,20,18,18,17,17,18,25,10,29,-3,15,22,34,-9,-7,-11,0,-10,15,14,14,0,39,-124,-118,-244,-240,-1133,-1109]} 1. e4 {[%emt 0:00:30]} c5 {[%emt 0:00:43]} 2. Nf3 {[%emt 0:00:00][%cal Bg1f3,Bf3d4,Bd4c2,Bc2e3,Be3d5][%mdl 32]} a6 {[%emt 0:00:10]} 3. c4 {[%emt 0:00:09]} Nc6 {[%emt 0:00:13]} 4. d4 {[%emt 0:00:35]} cxd4 {[%emt 0:00:07]} 5. Nxd4 {[%emt 0:00:05]} e5 {[%emt 0:00:26]} 6. Nc2 {[%emt 0:02:51]} Bc5 {[%emt 0:01:36]} 7. Be3 {[%emt 0:02:25]} Bxe3 {[%emt 0:05:25]} 8. Nxe3 {[%emt 0:00:25]} d6 {[%emt 0:01:29] The position is equal.} 9. Nc3 {[%emt 0:02:04]} Nge7 {[%emt 0:00:11][%cal Bg8e7,Be7g6,Bg6e5][%mdl 32]} 10. Bd3 {[%emt 0:01:41]} O-O {[%emt 0:00:07]} 11. O-O {[%emt 0:00:15]} Nd4 {[%emt 0:04:44][%cal Bc6d4,Bd4e6,Be6c5][%mdl 32]} 12. Ne2 {[%emt 0:04:29]} Ne6 {[%emt 0:01:17]} 13. Nd5 {[%emt 0:03:04]} Ng6 {[%emt 0:01:24]} 14. Qd2 {[%emt 0:03:27]} a5 {[%emt 0:03:16]} 15. f4 {[%emt 0:04:42]} exf4 {[%emt 0:00:29]} 16. Nexf4 {[%emt 0:00:25]} Ne5 {[%emt 0:01:42]} 17. Rac1 {[%emt 0:02:55]} Nc5 {[%emt 0:06:07]} 18. Bb1 {[%emt 0:04:13]} Be6 {[%emt 0:06:57]} 19. Rc3 {[%emt 0:05:59]} Qh4 {[%emt 0:04:50]} 20. Nxe6 $2 {[%emt 0:13:42]} (20. Rg3 $14 Ng6 21. b3) 20... fxe6 $17 {[%emt 0:02:00]} 21. Rxf8+ {[%emt 0:03:56]} (21. Nf4 $17 {was called for.}) 21... Rxf8 $19 {[%emt 0:00:11]} 22. Rh3 $2 {[%emt 0:00:57] [#]} (22. Nc7) 22... Qxh3 $3 {[%emt 0:00:42][%mdl 512] Weighted Error Value: White=0.71/Black=0.11 (very precise) .  Mistake:       	White=3     	---        Inaccurate:     	White=2     	Black=1      OK:         	White=3     	---        Brilliant:      	---       	Black=1} 0-1

[Event "Niedersachsen Jubilaeumsturnier Open A 2"]
[Site "Wolfsburg"]
[Date "2024.11.15"]
[Round "1.2"]
[White "Bogdanov, Egor"]
[Black "Heirich, Andreas"]
[Result "1-0"]
[ECO "B18"]
[WhiteElo "2476"]
[BlackElo "1933"]
[Annotator "RC"]
[PlyCount "73"]
[EventDate "2024.11.15"]
[EventCountry "GER"]
[SourceTitle "playchess.com"]
[Source "ChessBase"]
[SourceQuality "1"]
[TimeControl "5400+30"]

1. e4 {[%emt 0:00:01]} c6 {[%emt 0:00:10]} 2. d4 {[%emt 0:00:06]} d5 {[%emt 0:00:05]} 3. Nc3 {[%emt 0:00:52]} dxe4 {[%emt 0:00:16]} 4. Nxe4 {[%emt 0:00:06]} Bf5 {[%emt 0:00:11]} 5. Ng3 {[%emt 0:00:06]} Bg6 {[%emt 0:00:07]} 6. Nh3 {[%emt 0:00:39]} e6 {[%emt 0:01:14]} 7. Nf4 {[%emt 0:00:07]} Bd6 {[%emt 0:00:30]} 8. Ngh5 {[%emt 0:02:37]} Bxf4 {[%emt 0:06:45]} 9. Nxf4 {[%emt 0:00:13]} Ne7 {[%emt 0:00:36]} 10. Be2 {[%emt 0:01:08]} Nd7 {[%emt 0:01:03]} 11. O-O {[%emt 0:00:52]} O-O {[%emt 0:00:29]} 12. Nxg6 {[%emt 0:02:02]} hxg6 {[%emt 0:00:50]} 13. c3 {[%emt 0:07:33]} Qc7 {[%emt 0:07:20]} 14. Bg5 {[%emt 0:00:35]} Nf6 {[%emt 0:00:49]} 15. Bf3 {[%emt 0:01:05]} Nh7 {[%emt 0:06:13]} 16. Bd2 {[%emt 0:00:51]} Nf6 {[%emt 0:00:32]} 17. g3 {[%emt 0:01:24]} Rad8 {[%emt 0:01:08]} 18. Bf4 {[%emt 0:03:45]} Qb6 {[%emt 0:06:18]} 19. Qc2 {[%emt 0:01:35]} Nfd5 {[%emt 0:01:58]} 20. Bg5 {[%emt 0:00:35]} Qc7 {[%emt 0:01:43]} 21. Rad1 {[%emt 0:02:08]} Qa5 {[%emt 0:03:27]} 22. Bxd5 {[%emt 0:01:01]} Nxd5 {[%emt 0:00:21]} 23. Bxd8 {[%emt 0:00:06]} Qxd8 {[%emt 0:00:27]} 24. c4 {[%emt 0:00:42]} Nf6 {[%emt 0:00:15]} 25. Rfe1 {[%emt 0:02:15]} Nh5 {[%emt 0:01:27]} 26. Qb3 {[%emt 0:01:40]} Qg5 {[%emt 0:03:14]} 27. Qxb7 {[%emt 0:01:57]} Nf4 {[%emt 0:04:26]} 28. Qxc6 {[%emt 0:00:39]} Nh3+ {[%emt 0:00:45]} 29. Kg2 {[%emt 0:00:34]} Qf5 {[%emt 0:03:36]} 30. Qf3 {[%emt 0:00:33]} Ng5 {[%emt 0:03:16]} 31. Qxf5 {[%emt 0:00:04]} gxf5 {[%emt 0:00:11]} 32. d5 {[%emt 0:00:10]} exd5 {[%emt 0:02:37]} 33. Rxd5 {[%emt 0:00:18]} g6 {[%emt 0:01:25]} 34. Re7 {[%emt 1:09:11]} Rc8 {[%emt 0:00:49]} 35. b3 {[%emt 0:00:00]} Kf8 {[%emt 0:01:04]} 36. Rxa7 {[%emt 0:00:00]} Re8 {[%emt 0:00:15]} 37. h4 {[%emt 0:00:00]} 1-0

[Event "Niedersachsen Jubilaeumsturnier Open A 2"]
[Site "Wolfsburg"]
[Date "2024.11.15"]
[Round "1.3"]
[White "Bangert, Jonas"]
[Black "Richter, Michael"]
[Result "0-1"]
[ECO "D31"]
[WhiteElo "1914"]
[BlackElo "2413"]
[Annotator "RC"]
[PlyCount "48"]
[EventDate "2024.11.15"]
[EventCountry "GER"]
[SourceTitle "playchess.com"]
[Source "ChessBase"]
[SourceQuality "1"]
[TimeControl "5400+30"]

1. d4 {[%emt 0:00:02]} d5 {[%emt 0:00:08]} 2. c4 {[%emt 0:00:05]} e6 {[%emt 0:00:06]} 3. Nc3 {[%emt 0:00:05]} c6 {[%emt 0:00:05]} 4. Nf3 {[%emt 0:00:12]} dxc4 {[%emt 0:00:26]} 5. a4 {[%emt 0:00:49]} Bb4 {[%emt 0:00:09]} 6. e4 {[%emt 0:01:22]} b5 {[%emt 0:00:08]} 7. Be2 {[%emt 0:02:03]} Bb7 {[%emt 0:00:43]} 8. O-O {[%emt 0:01:00]} a6 {[%emt 0:00:17]} 9. Qc2 {[%emt 0:06:05]} Ne7 {[%emt 0:02:49]} 10. Bf4 {[%emt 0:03:43]} Ng6 {[%emt 0:01:53]} 11. Bg3 {[%emt 0:07:09]} Nd7 {[%emt 0:00:17]} 12. d5 {[%emt 0:05:11]} O-O {[%emt 0:11:56]} 13. dxc6 {[%emt 0:20:57]} Bxc6 {[%emt 0:00:09]} 14. Nd4 {[%emt 0:01:25]} Qb6 {[%emt 0:00:53]} 15. Rfd1 {[%emt 0:07:22]} Be7 {[%emt 0:05:54]} 16. Na2 {[%emt 0:13:42]} Nc5 {[%emt 0:16:32]} 17. Nxc6 {[%emt 0:08:00]} Qxc6 {[%emt 0:00:14]} 18. f3 {[%emt 0:00:23]} Nb3 {[%emt 0:01:37]} 19. Rab1 {[%emt 0:00:35]} Bc5+ {[%emt 0:01:13]} 20. Kf1 {[%emt 0:02:05]} Ba7 {[%emt 0:03:51]} 21. Qc3 {[%emt 0:06:51]} Qc5 {[%emt 0:01:01]} 22. Ke1 {[%emt 0:00:06]} Nf4 {[%emt 0:01:46]} 23. Bf1 {[%emt 0:02:41]} Bb6 {[%emt 0:00:35]} 24. Qc2 {[%emt 0:00:51]} Qe3+ {[%emt 0:00:24]} 0-1

[Event "Niedersachsen Jubilaeumsturnier Open A 2"]
[Site "Wolfsburg"]
[Date "2024.11.15"]
[Round "1.4"]
[White "Helmer, Jan"]
[Black "Hammerl, Jonas"]
[Result "1-0"]
[ECO "A41"]
[WhiteElo "2226"]
[BlackElo "1914"]
[Annotator "RC"]
[PlyCount "69"]
[EventDate "2024.11.15"]
[EventCountry "GER"]
[SourceTitle "playchess.com"]
[Source "ChessBase"]
[SourceQuality "1"]
[TimeControl "5400+30"]

1. d4 {[%emt 0:00:06]} d6 {[%emt 0:00:13]} 2. Nf3 {[%emt 0:00:19]} g6 {[%emt 0:00:31]} 3. g3 {[%emt 0:00:42]} Nd7 {[%emt 0:02:16]} 4. Bg2 {[%emt 0:00:40]} c5 {[%emt 0:01:10]} 5. O-O {[%emt 0:03:38]} Bg7 {[%emt 0:03:19]} 6. c3 {[%emt 0:02:34]} Ngf6 {[%emt 0:05:25]} 7. Nbd2 {[%emt 0:03:58]} d5 {[%emt 0:06:17]} 8. Re1 {[%emt 0:07:21]} O-O {[%emt 0:03:03]} 9. e4 {[%emt 0:02:01]} dxe4 {[%emt 0:00:48]} 10. Nxe4 {[%emt 0:00:53]} Nxe4 {[%emt 0:13:37]} 11. Rxe4 {[%emt 0:02:33]} cxd4 {[%emt 0:00:14]} 12. Nxd4 {[%emt 0:09:32]} Nc5 {[%emt 0:00:55]} 13. Re1 {[%emt 0:00:07]} e5 {[%emt 0:00:54]} 14. Nb3 {[%emt 0:05:56]} Nd3 {[%emt 0:03:01]} 15. Rf1 {[%emt 0:01:15]} Nxc1 {[%emt 0:01:19]} 16. Rxc1 {[%emt 0:00:18]} Qc7 {[%emt 0:01:21]} 17. Qd5 {[%emt 0:05:14]} Rb8 {[%emt 0:06:57]} 18. Rcd1 {[%emt 0:05:39]} b6 {[%emt 0:05:23]} 19. Qd6 {[%emt 0:01:03]} Qxd6 {[%emt 0:03:30]} 20. Rxd6 {[%emt 0:00:01]} Bg4 {[%emt 0:01:06]} 21. h3 {[%emt 0:04:58]} Be6 {[%emt 0:00:46]} 22. Rfd1 {[%emt 0:01:01]} Bf6 {[%emt 0:02:46]} 23. Bd5 {[%emt 0:07:52]} Be7 {[%emt 0:04:21]} 24. Rc6 {[%emt 0:00:01]} Bxh3 {[%emt 0:04:19]} 25. Rc7 {[%emt 0:00:22]} Bg5 {[%emt 0:00:41]} 26. Rxa7 {[%emt 0:01:58]} Bg4 {[%emt 0:06:46]} 27. Re1 {[%emt 0:01:28]} Bf6 {[%emt 0:02:51]} 28. Nd2 {[%emt 0:02:28]} Rbd8 {[%emt 0:07:19]} 29. c4 {[%emt 0:00:02]} Bg7 {[%emt 0:01:20]} 30. Ne4 {[%emt 0:04:08]} Rd7 {[%emt 0:01:25]} 31. Rxd7 {[%emt 0:01:15]} Bxd7 {[%emt 0:00:08]} 32. Re3 {[%emt 0:01:30]} Rd8 {[%emt 0:05:25]} 33. Rb3 {[%emt 0:02:10]} Rb8 {[%emt 0:03:47]} 34. c5 {[%emt 0:02:13]} b5 {[%emt 0:00:44]} 35. c6 {[%emt 0:00:26]} 1-0

[Event "Niedersachsen Jubilaeumsturnier Open A 2"]
[Site "Wolfsburg"]
[Date "2024.11.15"]
[Round "1.5"]
[White "Wusterack, Paul"]
[Black "Riemay, David"]
[Result "0-1"]
[ECO "A41"]
[WhiteElo "1891"]
[BlackElo "2204"]
[Annotator "RC"]
[PlyCount "80"]
[EventDate "2024.11.15"]
[EventCountry "GER"]
[SourceTitle "playchess.com"]
[Source "ChessBase"]
[SourceQuality "1"]
[TimeControl "5400+30"]

1. Nf3 {[%emt 0:00:05]} d6 {[%emt 0:00:03]} 2. e3 {[%emt 0:00:37]} e5 {[%emt 0:00:12]} 3. d4 {[%emt 0:00:22]} e4 {[%emt 0:00:40]} 4. Nfd2 {[%emt 0:00:26]} f5 {[%emt 0:00:05]} 5. c4 {[%emt 0:01:46]} c5 {[%emt 0:02:17]} 6. d5 {[%emt 0:06:19]} g6 {[%emt 0:00:20]} 7. Nc3 {[%emt 0:15:26]} Bg7 {[%emt 0:00:15]} 8. Qa4+ {[%emt 0:05:53]} Bd7 {[%emt 0:04:51]} 9. Qc2 {[%emt 0:01:57]} Nf6 {[%emt 0:00:30]} 10. Be2 {[%emt 0:02:45]} O-O {[%emt 0:00:15]} 11. O-O {[%emt 0:02:30]} Na6 {[%emt 0:02:49]} 12. a3 {[%emt 0:00:59]} Rb8 {[%emt 0:00:51]} 13. Rb1 {[%emt 0:07:59]} Kh8 {[%emt 0:16:06]} 14. f3 {[%emt 0:08:35]} exf3 {[%emt 0:00:58]} 15. Bxf3 {[%emt 0:06:37]} Qe7 {[%emt 0:09:26]} 16. Re1 {[%emt 0:01:14]} Rbe8 {[%emt 0:00:29]} 17. Nf1 {[%emt 0:06:17]} Ng4 {[%emt 0:03:09]} 18. Bd2 {[%emt 0:03:30]} Qh4 {[%emt 0:02:13]} 19. g3 {[%emt 0:06:00]} Qe7 {[%emt 0:03:30]} 20. Bg2 {[%emt 0:02:40]} Ne5 {[%emt 0:01:21]} 21. Ne2 {[%emt 0:01:03]} b5 {[%emt 0:00:49]} 22. b3 {[%emt 0:00:55]} g5 {[%emt 0:02:48]} 23. Rbd1 {[%emt 0:05:37]} Qf7 {[%emt 0:03:43]} 24. Nc1 {[%emt 0:04:40]} Qh5 {[%emt 0:01:00]} 25. Bc3 {[%emt 0:00:58]} Nf3+ {[%emt 0:02:06]} 26. Bxf3 {[%emt 0:00:04]} Qxf3 {[%emt 0:00:09]} 27. Bxg7+ {[%emt 0:00:13]} Kxg7 {[%emt 0:00:04]} 28. Qg2 {[%emt 0:01:50]} Qg4 {[%emt 0:03:13]} 29. Nd2 {[%emt 0:01:31]} bxc4 {[%emt 0:01:37]} 30. Nxc4 {[%emt 0:00:13]} Rf6 {[%emt 0:01:34]} 31. Nd3 {[%emt 0:01:30]} Nc7 {[%emt 0:04:21]} 32. Nf2 {[%emt 0:01:42]} Qh5 {[%emt 0:00:11]} 33. e4 {[%emt 0:00:35]} Nb5 {[%emt 0:03:10]} 34. exf5 {[%emt 0:00:34]} Nc3 {[%emt 0:07:20]} 35. g4 {[%emt 0:00:02]} Nxd1 {[%emt 0:00:07]} 36. Rxd1 {[%emt 0:00:20]} Qh4 {[%emt 0:04:31]} 37. Ne4 {[%emt 0:00:10]} Rxe4 {[%emt 0:00:32]} 38. Qxe4 {[%emt 0:00:07]} Bxf5 {[%emt 0:00:07]} 39. Qg2 {[%emt 0:02:44]} Bxg4 {[%emt 0:00:17]} 40. Rf1 {[%emt 0:00:37]} Bh3 {[%emt 0:00:51]} 0-1

[Event "Niedersachsen Jubilaeumsturnier Open A 2"]
[Site "Wolfsburg"]
[Date "2024.11.15"]
[Round "1.6"]
[White "Lichtmannecker, Daniel"]
[Black "Harms, Friedjof"]
[Result "1-0"]
[ECO "C78"]
[WhiteElo "2194"]
[BlackElo "1891"]
[Annotator "RC"]
[PlyCount "99"]
[EventDate "2024.11.15"]
[EventCountry "GER"]
[SourceTitle "playchess.com"]
[Source "ChessBase"]
[SourceQuality "1"]
[TimeControl "5400+30"]

1. e4 {[%emt 0:00:03]} e5 {[%emt 0:00:07]} 2. Nf3 {[%emt 0:00:09]} Nc6 {[%emt 0:00:04]} 3. Bb5 {[%emt 0:00:14]} a6 {[%emt 0:00:51]} 4. Ba4 {[%emt 0:00:12]} Bc5 {[%emt 0:00:42]} 5. O-O {[%emt 0:07:10]} b5 {[%emt 0:02:08]} 6. Bb3 {[%emt 0:00:07]} Nf6 {[%emt 0:00:46]} 7. Re1 {[%emt 0:04:46]} O-O {[%emt 0:02:49]} 8. c3 {[%emt 0:03:51]} d6 {[%emt 0:04:37]} 9. d4 {[%emt 0:07:02]} Bb6 {[%emt 0:04:53]} 10. h3 {[%emt 0:04:22]} h6 {[%emt 0:06:11]} 11. Be3 {[%emt 0:04:26]} Re8 {[%emt 0:04:57]} 12. Nbd2 {[%emt 0:09:55]} Bb7 {[%emt 0:03:55]} 13. d5 {[%emt 0:07:29]} Na5 {[%emt 0:09:52]} 14. Bxb6 {[%emt 0:02:32]} cxb6 {[%emt 0:00:14]} 15. Bc2 {[%emt 0:09:34]} Rc8 {[%emt 0:05:18]} 16. Qe2 {[%emt 0:06:39]} Nc4 {[%emt 0:02:19]} 17. Nxc4 {[%emt 0:01:13]} bxc4 {[%emt 0:00:23]} 18. Nd2 {[%emt 0:00:59]} b5 {[%emt 0:00:34]} 19. Qe3 {[%emt 0:05:42]} Qc7 {[%emt 0:00:25]} 20. f4 {[%emt 0:04:56]} Qc5 {[%emt 0:06:29]} 21. Qxc5 {[%emt 0:00:24]} Rxc5 {[%emt 0:00:09]} 22. fxe5 {[%emt 0:00:14]} dxe5 {[%emt 0:03:41]} 23. a4 {[%emt 0:00:55]} Rcc8 {[%emt 0:02:08]} 24. axb5 {[%emt 0:00:46]} axb5 {[%emt 0:01:01]} 25. Ra5 {[%emt 0:00:53]} b4 {[%emt 0:03:21]} 26. cxb4 {[%emt 0:02:00]} c3 {[%emt 0:02:56]} 27. Nb3 {[%emt 0:02:49]} cxb2 {[%emt 0:00:51]} 28. Nc5 {[%emt 0:00:07]} Bxd5 {[%emt 0:03:40]} 29. exd5 Nxd5 {[%emt 0:00:01]} 30. Bf5 {[%emt 0:02:56]} Ra8 {[%emt 0:02:01]} 31. Rxe5 {[%emt 0:04:20]} Nc3 {[%emt 0:00:58]} 32. Na4 {[%emt 0:05:00]} Nxa4 {[%emt 0:02:22]} 33. Rxa4 {[%emt 0:00:31]} g6 {[%emt 0:12:42]} 34. Rxa8 {[%emt 0:00:22]} Rxa8 {[%emt 0:00:34]} 35. Bb1 {[%emt 0:00:08]} Rd8 {[%emt 0:04:10]} 36. Kf2 {[%emt 0:01:18]} Rd1 {[%emt 0:00:53]} 37. Re1 {[%emt 0:00:12]} Rd4 {[%emt 0:00:17]} 38. b5 {[%emt 0:01:14]} Rd5 {[%emt 0:00:06]} 39. b6 {[%emt 0:00:47]} Rb5 {[%emt 0:00:06]} 40. Re8+ {[%emt 0:01:03]} Kg7 {[%emt 0:00:01]} 41. Rb8 {[%emt 0:00:25]} Rf5+ {[%emt 0:08:24]} 42. Ke2 {[%emt 0:00:33]} Kf6 {[%emt 0:00:00]} 43. b7 {[%emt 0:00:00]} Rb5 {[%emt 0:00:00]} 44. Kd2 {[%emt 0:00:00]} Ke7 {[%emt 0:00:00]} 45. Kc2 {[%emt 0:00:00]} Kd7 {[%emt 0:00:00]} 46. Rf8 {[%emt 0:00:00]} Kc7 {[%emt 0:00:00]} 47. Rxf7+ {[%emt 0:00:00]} Kb8 {[%emt 0:00:00]} 48. Ba2 {[%emt 0:00:00]} Rg5 {[%emt 0:00:00]} 49. Kb1 {[%emt 0:00:00]} Rxg2 {[%emt 0:00:12]} 50. Rf8+ {[%emt 0:07:12]} 1-0

[Event "Niedersachsen Jubilaeumsturnier Open A 2"]
[Site "Wolfsburg"]
[Date "2024.11.15"]
[Round "1.7"]
[White "Alpers, Arne"]
[Black "Moser, Axel"]
[Result "0-1"]
[ECO "E11"]
[WhiteElo "1885"]
[BlackElo "2149"]
[Annotator "RC"]
[PlyCount "162"]
[EventDate "2024.11.15"]
[EventCountry "GER"]
[SourceTitle "playchess.com"]
[Source "ChessBase"]
[SourceQuality "1"]
[TimeControl "5400+30"]

1. d4 {[%emt 0:00:03]} Nf6 {[%emt 0:00:12]} 2. c4 {[%emt 0:00:05]} e6 {[%emt 0:00:55]} 3. Nf3 {[%emt 0:00:09]} Bb4+ {[%emt 0:00:38]} 4. Bd2 {[%emt 0:01:05]} Qe7 {[%emt 0:01:01]} 5. a3 {[%emt 0:06:25]} Bxd2+ {[%emt 0:01:19]} 6. Qxd2 {[%emt 0:00:07]} d6 {[%emt 0:01:13]} 7. Nc3 {[%emt 0:02:03]} O-O {[%emt 0:00:55]} 8. g3 {[%emt 0:02:40]} e5 {[%emt 0:00:40]} 9. Bg2 {[%emt 0:01:01]} Re8 {[%emt 0:04:55]} 10. O-O {[%emt 0:01:02]} e4 {[%emt 0:10:28]} 11. Ng5 {[%emt 0:08:03]} Bf5 {[%emt 0:00:18]} 12. Qf4 {[%emt 0:02:57]} Bg6 {[%emt 0:00:21]} 13. f3 {[%emt 0:02:51]} exf3 {[%emt 0:16:38]} 14. Nxf3 {[%emt 0:12:17]} c6 {[%emt 0:05:58]} 15. Nh4 {[%emt 0:04:00]} Qe3+ {[%emt 0:01:11]} 16. Qxe3 {[%emt 0:06:42]} Rxe3 {[%emt 0:00:06]} 17. Nxg6 {[%emt 0:03:39]} hxg6 {[%emt 0:00:05]} 18. Rae1 {[%emt 0:01:12]} Nbd7 {[%emt 0:00:54]} 19. Nd1 {[%emt 0:03:01]} Re7 {[%emt 0:02:04]} 20. e4 {[%emt 0:01:47]} c5 {[%emt 0:01:13]} 21. e5 {[%emt 0:05:11]} dxe5 {[%emt 0:02:19]} 22. dxe5 {[%emt 0:00:41]} Nxe5 {[%emt 0:00:40]} 23. Re2 {[%emt 0:05:20]} Rae8 {[%emt 0:03:11]} 24. Rfe1 {[%emt 0:00:30]} Kf8 {[%emt 0:03:18]} 25. Bxb7 {[%emt 0:01:14]} Nxc4 {[%emt 0:00:49]} 26. Rxe7 {[%emt 0:01:38]} Rxe7 {[%emt 0:00:05]} 27. Rxe7 {[%emt 0:00:08]} Kxe7 {[%emt 0:00:05]} 28. Ba6 {[%emt 0:02:41]} Ne5 {[%emt 0:02:02]} 29. Ne3 {[%emt 0:03:56]} Kd6 {[%emt 0:07:36]} 30. h3 {[%emt 0:02:32]} Ne4 {[%emt 0:03:40]} 31. g4 {[%emt 0:01:01]} Nd2 {[%emt 0:01:21]} 32. Kf2 {[%emt 0:01:07]} Ne4+ {[%emt 0:04:01]} 33. Kg2 {[%emt 0:01:24]} Kc6 {[%emt 0:04:36]} 34. Nc4 {[%emt 0:04:33]} Kd5 {[%emt 0:02:04]} 35. b3 {[%emt 0:01:42]} Kd4 {[%emt 0:01:54]} 36. Nxe5 {[%emt 0:02:13]} Kxe5 {[%emt 0:00:05]} 37. Kf3 {[%emt 0:02:27]} Nd2+ {[%emt 0:02:00]} 38. Ke3 {[%emt 0:00:05]} Nxb3 {[%emt 0:00:39]} 39. Bc4 {[%emt 0:00:05]} Nd4 {[%emt 0:00:17]} 40. Bxf7 {[%emt 0:00:19]} Kf6 {[%emt 0:05:55]} 41. Be8 {[%emt 0:05:16]} Nc2+ {[%emt 0:04:27]} 42. Kd3 {[%emt 0:00:19]} Nxa3 {[%emt 0:00:25]} 43. Kc3 {[%emt 0:00:06]} a6 {[%emt 0:00:33]} 44. Bc6 {[%emt 0:05:34]} Ke5 {[%emt 0:02:52]} 45. Bb7 {[%emt 0:00:23]} Nb5+ {[%emt 0:00:17]} 46. Kd3 {[%emt 0:00:00]} Nc7 {[%emt 0:00:00]} 47. Kc4 {[%emt 0:00:00]} Kd6 {[%emt 0:00:00]} 48. g5 {[%emt 0:00:00]} Ne6 {[%emt 0:00:00]} 49. Bxa6 {[%emt 0:00:00]} Nxg5 {[%emt 0:00:00]} 50. Bc8 {[%emt 0:00:00]} Nf3 {[%emt 0:00:00]} 51. Kd3 {[%emt 0:00:00]} Kc7 {[%emt 0:00:00]} 52. Be6 {[%emt 0:00:00]} Kd6 {[%emt 0:00:00]} 53. Bc8 {[%emt 0:00:00]} Ne5+ {[%emt 0:00:00]} 54. Ke4 {[%emt 0:00:00]} Nc6 {[%emt 0:00:00]} 55. Ba6 {[%emt 0:00:00]} Nb4 {[%emt 0:00:00]} 56. Bc4 {[%emt 0:00:00]} Nc6 {[%emt 0:00:00]} 57. Bf7 {[%emt 0:00:00]} Ne5 {[%emt 0:00:00]} 58. Be8 {[%emt 0:00:00]} g5 {[%emt 0:00:00]} 59. Bb5 {[%emt 0:00:00]} Ke6 {[%emt 0:00:00]} 60. Be2 {[%emt 0:00:00]} c4 {[%emt 0:00:35]} 61. Kd4 {[%emt 0:00:00]} Kf5 {[%emt 0:00:15]} 62. Bd1 {[%emt 0:00:25]} Kf4 {[%emt 0:00:34]} 63. Be2 {[%emt 0:00:27]} g6 {[%emt 0:02:15]} 64. Bd1 {[%emt 0:00:18]} Nd3 {[%emt 0:00:10]} 65. Bg4 {[%emt 0:04:40]} Kg3 {[%emt 0:00:46]} 66. Be6 {[%emt 0:01:10]} Nf4 {[%emt 0:00:34]} 67. Bxc4 {[%emt 0:00:05]} Nxh3 {[%emt 0:00:39]} 68. Ke3 {[%emt 0:01:24]} g4 {[%emt 0:00:08]} 69. Be6 {[%emt 0:00:58]} Nf4 {[%emt 0:00:09]} 70. Bd7 {[%emt 0:00:24]} Nd5+ {[%emt 0:00:10]} 71. Kd4 {[%emt 0:00:36]} Nf6 {[%emt 0:00:23]} 72. Bc6 {[%emt 0:00:16]} Kf4 {[%emt 0:00:08]} 73. Kd3 {[%emt 0:00:25]} g5 {[%emt 0:01:57]} 74. Ke2 {[%emt 0:00:14]} Kg3 {[%emt 0:00:08]} 75. Kf1 {[%emt 0:03:11]} Kh2 {[%emt 0:00:15]} 76. Bb7 {[%emt 0:00:36]} g3 {[%emt 0:00:14]} 77. Bf3 {[%emt 0:00:40]} Ng4 {[%emt 0:00:38]} 78. Bb7 {[%emt 0:01:09]} g2+ {[%emt 0:00:17]} 79. Bxg2 {[%emt 0:00:06]} Ne3+ {[%emt 0:00:06]} 80. Kf2 {[%emt 0:00:05]} Nxg2 {[%emt 0:00:09]} 81. Kf3 {[%emt 0:00:04]} Kh3 {[%emt 0:00:11]} 0-1

[Event "Niedersachsen Jubilaeumsturnier Open A 2"]
[Site "Wolfsburg"]
[Date "2024.11.15"]
[Round "1.8"]
[White "Peters, Tom"]
[Black "Kozik, Andreas"]
[Result "1-0"]
[ECO "C10"]
[WhiteElo "2148"]
[BlackElo "1884"]
[Annotator "RC"]
[PlyCount "79"]
[EventDate "2024.11.15"]
[EventCountry "GER"]
[SourceTitle "playchess.com"]
[Source "ChessBase"]
[SourceQuality "1"]
[TimeControl "5400+30"]

1. e4 {[%emt 0:00:04]} e6 {[%emt 0:00:07]} 2. d4 {[%emt 0:00:10]} d5 {[%emt 0:00:06]} 3. Nc3 {[%emt 0:00:38]} Nc6 {[%emt 0:00:18]} 4. e5 {[%emt 0:02:46]} a6 {[%emt 0:01:40]} 5. Nf3 {[%emt 0:04:35]} f6 {[%emt 0:00:21]} 6. Bd3 {[%emt 0:08:08]} fxe5 {[%emt 0:06:12]} 7. Nxe5 {[%emt 0:02:13]} Nxe5 {[%emt 0:00:27]} 8. dxe5 {[%emt 0:00:11]} Qe7 {[%emt 0:00:24]} 9. Ne2 {[%emt 0:07:32]} Bd7 {[%emt 0:03:10]} 10. c3 {[%emt 0:02:24]} O-O-O {[%emt 0:03:18]} 11. b4 {[%emt 0:02:36]} Nh6 {[%emt 0:06:30]} 12. Bxh6 {[%emt 0:16:06]} gxh6 {[%emt 0:00:04]} 13. f4 {[%emt 0:02:45]} Qg7 {[%emt 0:03:33]} 14. O-O {[%emt 0:03:53]} Be7 {[%emt 0:04:26]} 15. Nd4 {[%emt 0:01:54]} Rdf8 {[%emt 0:11:02]} 16. Qe2 {[%emt 0:03:35]} Rhg8 {[%emt 0:13:45]} 17. g3 {[%emt 0:02:29]} Kd8 {[%emt 0:20:56]} 18. Rab1 {[%emt 0:04:00]} Bh4 {[%emt 0:05:49]} 19. Rf3 {[%emt 0:14:05]} Qg4 {[%emt 0:08:51]} 20. Kh1 {[%emt 0:01:15]} Be7 {[%emt 0:00:31]} 21. Bxh7 {[%emt 0:02:05]} Rg7 {[%emt 0:00:12]} 22. Bd3 {[%emt 0:00:20]} h5 {[%emt 0:00:14]} 23. Qg2 {[%emt 0:01:56]} Rgg8 {[%emt 0:04:09]} 24. Rbf1 {[%emt 0:05:52]} Qg7 {[%emt 0:00:20]} 25. Re1 {[%emt 0:03:31]} h4 {[%emt 0:01:39]} 26. f5 {[%emt 0:00:47]} exf5 {[%emt 0:00:42]} 27. e6 {[%emt 0:01:18]} Be8 {[%emt 0:01:16]} 28. Bxf5 {[%emt 0:01:18]} c6 {[%emt 0:00:36]} 29. g4 {[%emt 0:00:55]} h3 {[%emt 0:03:00]} 30. Rxh3 {[%emt 0:01:45]} Qg5 {[%emt 0:00:38]} 31. Rf3 {[%emt 0:00:52]} Rh8 {[%emt 0:00:24]} 32. h3 {[%emt 0:00:29]} Rh4 {[%emt 0:00:12]} 33. Rg3 {[%emt 0:00:36]} Rfh8 {[%emt 0:00:58]} 34. Nf3 {[%emt 0:01:32]} Qh6 {[%emt 0:00:26]} 35. Nxh4 {[%emt 0:00:35]} Bxh4 {[%emt 0:00:14]} 36. e7+ {[%emt 0:00:20]} Kc7 {[%emt 0:00:43]} 37. Re6 {[%emt 0:00:23]} Qc1+ {[%emt 0:01:11]} 38. Qg1 {[%emt 0:00:07]} Qg5 {[%emt 0:00:27]} 39. Rge3 {[%emt 0:00:45]} Qf4 {[%emt 0:00:19]} 40. Qh2 {[%emt 0:00:34]} 1-0